bitfinex/quotes_ETHUSD_20250107
["timestamp","ask_amount","ask_price","bid_price","bid_amount"]
[1736274141962,0.0075,3440.5,3440.4,3.46413]
[1736274142163,0.8236,3441.8,3440.6,0.55]
[1736274142399,0.05047344,3441.6,3441.1,3.31201477]
[1736274142836,0.0075,3441.5,3440.7,6.21837477]
[1736274142977,0.0075,3441.3,3440.5,2.90653]
[1736274143178,0.0075,3441.1,3440.5,2.90653]
[1736274143616,0.0075,3440.9,3440.5,2.90653]
[1736274143924,0.0075,3440.9,3440.4,0.0290629]
[1736274144101,0.8236,3441.4,3440.7,2.90638]
[1736274144102,0.05077158,3440.8,3440.7,2.90638]
[1736274144451,0.8236,3441.4,3440.5,2.90654]
[1736274144738,0.0075,3441.3,3440.5,2.90654]
[1736274144893,0.05827158,3441.3,3440.6,3.67605]
[1736274145078,0.05827158,3441.3,3440.6,0.7696]
[1736274145274,0.05827158,3441.3,3440.4,2.90662]
[1736274145733,0.7744,3441.1,3440.2,3.31201477]
[1736274145875,0.7744,3441.1,3439.8,3.31201477]
[1736274146077,0.7744,3441.1,3439.6,2.90728]
[1736274146078,0.0075,3440.5,3439.6,2.90728]
[1736274146817,0.0075,3440.3,3439.4,2.90747]
[1736274147312,0.8009,3440.1,3439.5,2.90738]
[1736274147700,0.0075,3439.9,3439.5,2.90738]
[1736274148092,0.0075,3439.9,3439.4,0.02907062]
[1736274148297,0.0075,3439.7,3439.6,2.90731]
[1736274148911,0.0075,3440.5,3439.6,2.90731]
[1736274149311,0.0075,3440.3,3439.6,2.90731]
[1736274149797,0.0075,3440.3,3439.3,7.00194477]
[1736274149798,0.0075,3440.1,3439.4,2.90745]
[1736274150341,0.0075,3439.9,3439.4,2.90745]
[1736274150521,0.0075,3439.9,3439.3,6.21954477]
[1736274150695,0.0075,3440.1,3439.3,6.21954477]
[1736274151035,0.0075,3439.7,3439.3,6.21954477]
[1736274151208,0.0075,3439.5,3439.4,2.90746]
[1736274151833,0.0075,3440.1,3439.3,3.31201477]
[1736274152138,0.0075,3439.9,3439.3,3.31201477]
[1736274152756,0.0075,3439.7,3439.3,3.31201477]
[1736274152939,0.0075,3439.7,3439.4,2.90741]
[1736274153138,0.7963,3440.2,3439.3,3.31201477]
[1736274153139,0.7963,3440.2,3439.6,2.90731]
[1736274153344,0.7963,3440.2,3439.6,2.90726]
[1736274153541,0.05028541,3440.1,3439.6,2.90726]
[1736274153744,0.0075,3440.0,3439.8,2.90713]
[1736274153947,0.0075,3440.0,3439.9,2.90706]
[1736274154147,0.7997,3440.5,3439.8,0.290713]
[1736274154321,0.0075,3440.4,3439.9,2.90706]
[1736274154520,0.05718902,3440.4,3439.9,2.90706]
[1736274155430,0.05718902,3440.4,3440.1,2.90687]
[1736274155649,0.05718902,3440.4,3440.2,2.90679]
[1736274156394,0.05718902,3440.4,3439.7,7.00428477]
[1736274156395,0.05718902,3440.4,3440.0,2.90695]
[1736274157057,0.05718902,3440.4,3439.7,0.7851]
[1736274157263,0.05718902,3440.4,3439.8,2.90713]
[1736274157460,0.0075,3440.4,3439.8,2.90713]
[1736274157763,0.0075,3440.2,3439.9,2.90703]
[1736274157960,0.0075,3440.2,3440.0,2.90695]
[1736274158162,1.21515578,3441.3,3440.2,0.5575]
[1736274158462,1.21515578,3441.3,3441.2,3.46346]
[1736274158673,1.22265578,3441.3,3441.2,2.90596]
[1736274158876,0.0075,3441.3,3441.2,2.90596]
[1736274159026,0.0075,3441.3,3441.2,3.46346]
[1736274159227,0.0075,3441.3,3441.2,2.90596]
[1736274160178,2.42567127,3441.4,3440.9,3.96644]
[1736274160179,2.42567127,3441.4,3441.0,2.9061]
[1736274160367,1.40940125,3442.1,3440.6,0.8103]
[1736274160524,4.18003649,3442.1,3441.2,2.90591]
[1736274160723,1.40940125,3442.1,3441.2,2.90591]
[1736274161036,1.40940125,3442.1,3440.8,2.9063]
[1736274161037,0.0075,3442.0,3441.4,2.90573]
[1736274161366,0.0075,3442.0,3441.0,2.90609]
[1736274161367,0.0075,3442.0,3441.5,2.9057]
[1736274161587,0.8029,3442.4,3441.7,3.30918027]
[1736274161786,2.90419,3443.3,3441.7,3.30918027]
[1736274161787,0.7727,3442.8,3442.0,2.90528]
[1736274161947,0.7727,3442.8,3442.2,2.90505]
[1736274162143,0.0075,3442.7,3442.3,2.90502]
[1736274162355,0.0075,3442.7,3442.4,2.90494]
[1736274162555,0.0075,3442.7,3442.1,2.9052]
[1736274162785,0.7727,3443.7,3442.3,0.5575]
[1736274163000,1.36275099,3443.7,3442.3,2.90503]
[1736274163153,1.36275099,3443.7,3442.5,2.90486]
[1736274163154,0.0075,3443.4,3442.5,2.90486]
[1736274163456,0.0075,3443.2,3442.5,2.90486]
[1736274163997,0.0075,3443.2,3442.7,2.90465]
[1736274164206,0.04950926,3443.1,3443.0,2.90444]
[1736274164363,0.7727,3443.5,3443.0,2.90444]
[1736274164690,0.05700926,3443.4,3443.0,2.90444]
[1736274165062,0.05700926,3443.4,3442.6,2.93375276]
[1736274165270,0.05700926,3443.4,3442.6,2.90471]
[1736274165469,0.0075,3443.4,3442.6,2.90471]
[1736274165795,0.0075,3443.2,3442.5,2.90478]
[1736274165956,0.0075,3443.0,3441.7,2.90552]
[1736274166158,0.8288,3443.1,3441.4,1.34439217]
[1736274166159,0.8363,3442.5,3441.4,0.7672]
[1736274166396,0.8363,3442.5,3441.6,2.90558]
[1736274167258,0.0075,3442.3,3441.5,2.9057]
[1736274167481,0.0075,3442.3,3441.4,0.7672]
[1736274167795,2.91257,3442.3,3441.2,2.90593]
[1736274168095,0.0075,3442.1,3441.2,2.90593]
[1736274168476,0.0075,3441.9,3441.0,0.7565]
[1736274168717,0.0075,3441.7,3441.1,2.90602]
[1736274169363,0.0075,3441.5,3440.1,3.55918027]
[1736274169722,0.0075,3441.5,3440.2,3.72766]
[1736274169920,0.771,3441.2,3440.1,2.90682]
[1736274170100,0.0075,3441.1,3440.0,1.21151647]
[1736274170263,0.0075,3440.9,3440.0,4.11846647]
[1736274170977,0.0075,3440.7,3440.1,2.90689]
[1736274171385,0.7635,3441.2,3439.7,0.03656799]
[1736274171600,0.0075,3440.5,3440.2,2.90676]
[1736274171813,0.0075,3440.5,3439.9,0.02906597]
[1736274171977,0.0075,3440.5,3440.3,2.90667]
[1736274172182,0.0075,3441.1,3439.8,0.2943878]
[1736274172404,0.05038478,3441.0,3440.2,2.90677]
[1736274172595,0.0075,3440.9,3440.2,2.90677]
[1736274172914,0.0075,3440.9,3439.9,0.02906596]
[1736274173080,0.0075,3441.1,3440.5,2.90655]
[1736274173274,0.0075,3440.7,3440.5,2.90655]
[1736274174109,0.0075,3441.1,3440.6,2.90644]
[1736274174487,0.0075,3440.9,3440.0,2.90697]
[1736274174700,0.0075,3440.9,3439.8,3.2014678]
[1736274175076,0.0075,3440.7,3439.8,3.2014678]
[1736274175513,0.0075,3440.7,3440.2,2.90673]
[1736274175722,0.0075,3440.5,3440.2,2.90673]
[1736274175873,0.0075,3440.5,3439.9,2.90698]
[1736274176081,3.50168223,3441.6,3439.8,2.90711]
[1736274176082,0.0075,3440.3,3439.8,2.90711]
[1736274176281,0.0075,3440.3,3439.5,0.02907061]
[1736274176506,0.0075,3440.1,3439.9,2.90698]
[1736274176927,0.0075,3440.1,3440.0,2.90697]
[1736274177079,0.7784,3440.4,3440.0,2.90697]
[1736274177603,0.0075,3440.3,3439.7,2.90716]
[1736274177788,0.0075,3440.3,3440.2,2.9068]
[1736274178719,0.8217,3440.8,3440.3,2.90665]
[1736274178895,0.0075,3440.7,3440.3,2.90665]
[1736274179119,0.05657506,3440.7,3440.3,2.90665]
[1736274179342,0.0075,3440.7,3440.3,2.90665]
[1736274180041,0.0075,3440.7,3440.4,2.90662]
[1736274180255,0.7896,3441.5,3440.8,2.90628]
[1736274180540,0.0075,3441.3,3440.8,2.90628]
[1736274180840,0.0075,3441.1,3440.2,2.9068]
[1736274181040,0.0075,3441.1,3440.6,2.90643]
[1736274181215,0.0075,3441.1,3440.7,2.90638]
[1736274181422,0.0075,3441.4,3440.8,2.90628]
[1736274181623,0.0075,3441.2,3440.8,2.90628]
[1736274182033,0.04923073,3441.1,3440.8,2.90628]
[1736274182351,0.0075,3441.0,3440.8,2.90628]
[1736274182651,0.7923,3441.3,3439.7,4.43439627]
[1736274182806,0.0075,3440.9,3440.0,2.90694]
[1736274183009,0.0075,3440.7,3440.0,2.90694]
[1736274183218,0.0075,3440.7,3440.1,2.90685]
[1736274183619,0.0075,3440.9,3439.8,2.93616797]
[1736274183833,0.0075,3440.7,3440.2,2.9068]
[1736274184008,0.0075,3440.7,3439.8,3.35093641]
[1736274184009,0.0075,3440.7,3439.6,1.21151647]
[1736274184210,0.0075,3440.7,3439.3,5.73221322]
[1736274184211,0.0075,3440.7,3439.9,0.5575]
[1736274184417,0.7802,3441.0,3440.7,2.90633]
[1736274184740,0.05682152,3440.9,3440.7,2.90633]
[1736274185351,0.05682152,3440.9,3440.6,2.90642]
[1736274185725,0.05682152,3440.9,3440.8,2.9063]
[1736274186134,0.0075,3441.3,3440.9,2.90616]
[1736274186560,0.0075,3441.1,3441.0,2.90613]
[1736274186765,0.0075,3441.1,3441.0,3.49269157]
[1736274186963,1.21151647,3442.0,3441.9,2.90537]
[1736274187376,1.26092876,3442.0,3441.7,2.90552]
[1736274187576,0.0075,3441.9,3441.7,2.90552]
[1736274188001,0.0075,3441.9,3441.8,2.90545]
[1736274188202,0.7733,3442.1,3442.0,2.90528]
[1736274188409,1.21151647,3442.4,3441.6,2.90555]
[1736274188559,0.0075,3442.3,3441.9,2.9053]
[1736274188763,0.0075,3442.3,3442.1,2.90518]
[1736274189178,0.0075,3442.4,3442.1,2.90518]
[1736274189575,0.0075,3442.4,3441.8,2.90541]
[1736274189775,0.0075,3442.4,3441.7,0.57905217]
[1736274189776,2.00461647,3443.0,3442.7,2.90467]
[1736274189977,2.00461647,3443.0,3442.3,2.93402533]
[1736274190205,0.0075,3442.9,3442.8,2.90459]
[1736274190582,0.0075,3442.9,3442.6,2.90477]
[1736274190997,0.0075,3442.9,3442.3,2.90495]
[1736274192818,0.05094861,3442.8,3442.3,2.90495]
[1736274193018,0.05094861,3442.8,3441.9,3.15531]
[1736274193019,0.0075,3442.7,3442.2,2.90505]
[1736274193406,0.05087734,3442.6,3442.2,2.90505]
[1736274193581,0.7931,3443.0,3441.6,0.7668]
[1736274193582,0.0075,3442.5,3441.6,0.7668]
[1736274193790,0.0075,3442.5,3441.8,2.90544]
[1736274194086,0.0075,3442.3,3441.8,2.90539]
[1736274194392,0.0075,3442.3,3441.9,2.90535]
[1736274194597,0.0075,3442.1,3442.0,2.90528]
[1736274195327,0.0075,3442.9,3442.0,2.90528]
[1736274195633,0.049068,3442.8,3442.0,2.90528]
[1736274195940,0.0075,3442.7,3442.0,2.90528]
[1736274196226,0.0075,3442.5,3442.0,2.90528]
[1736274196706,0.0075,3442.3,3442.0,2.90528]
[1736274197236,0.0075,3442.1,3442.0,2.90528]
[1736274198957,3.69756,3443.0,3440.9,0.290616]
[1736274198958,3.31668027,3442.7,3440.9,0.290616]
[1736274199164,3.31668027,3442.7,3441.1,2.90596]
[1736274199165,0.0075,3442.4,3441.1,2.90596]
[1736274199450,0.0075,3442.2,3441.5,2.90562]
[1736274200435,0.0075,3442.2,3441.0,0.7567]
[1736274200637,0.0075,3442.0,3440.7,3.0]
[1736274200820,0.0075,3442.0,3440.9,2.90613]
[1736274201025,2.91279,3442.0,3440.9,2.90613]
[1736274201226,0.0075,3442.0,3441.4,2.90577]
[1736274201421,0.0075,3442.0,3441.1,2.90604]
[1736274201663,0.769,3442.1,3441.0,0.5575]
[1736274201664,0.0493405,3441.9,3441.7,2.90552]
[1736274201868,0.769,3442.1,3441.3,3.66623]
[1736274201869,0.0075,3441.8,3441.5,2.90568]
[1736274202642,0.0075,3442.0,3440.6,0.821]
[1736274202949,0.0075,3441.3,3440.4,2.90661]
[1736274203337,0.0075,3441.1,3440.4,2.90661]
[1736274203840,0.7802,3441.4,3440.3,0.02906469]
[1736274204060,0.7802,3441.4,3440.8,2.90629]
[1736274204364,0.0075,3441.2,3440.9,2.90618]
[1736274204565,0.0075,3441.2,3440.4,0.0075]
[1736274204766,0.0075,3441.2,3440.7,2.90637]
[1736274204966,0.7802,3441.4,3440.0,5.03251647]
[1736274204967,0.0075,3441.3,3440.0,5.03251647]
[1736274205141,0.0075,3441.3,3440.0,3.821]
[1736274205332,0.0075,3441.3,3440.1,2.90689]
[1736274205672,0.0075,3441.1,3440.3,2.9067]
[1736274205969,0.0075,3441.1,3440.2,2.9068]
[1736274206161,0.0075,3440.9,3439.9,3.0]
[1736274206364,0.0075,3440.9,3440.1,2.90689]
[1736274206527,0.0075,3440.9,3440.4,2.90662]
[1736274207067,0.0075,3440.7,3440.4,2.90662]
[1736274207466,3.63454942,3442.6,3439.7,3.8036]
[1736274207467,0.7854,3440.9,3439.7,0.8036]
[1736274207762,0.0075,3440.5,3439.4,3.69807]
[1736274207962,0.0075,3440.5,3439.4,4.18902865]
[1736274208287,0.0075,3440.5,3439.4,1.28155865]
[1736274208595,0.0075,3440.5,3439.7,2.90715]
[1736274208735,0.0075,3440.5,3439.5,3.46488]
[1736274209045,0.0075,3440.5,3440.3,2.90672]
[1736274209592,0.0075,3440.5,3440.4,2.90663]
[1736274209751,0.8319,3440.9,3440.1,2.90684]
[1736274209951,0.8319,3440.9,3440.5,2.90654]
[1736274210359,0.0075,3440.8,3440.5,2.90654]
[1736274211339,0.0075,3440.8,3440.0,0.0075]
[1736274211530,0.0075,3440.8,3440.6,2.90643]
[1736274214392,0.0075,3440.8,3440.2,2.9068]
[1736274214607,0.0075,3440.8,3440.4,2.90663]
[1736274214743,0.0075,3440.8,3440.5,2.90654]
[1736274214942,0.0075,3440.8,3440.1,0.8001]
[1736274214943,0.0075,3440.8,3440.6,2.90646]
[1736274215239,0.0075,3440.8,3440.7,2.90638]
[1736274215786,0.0075,3440.8,3440.5,2.90651]
[1736274215993,0.0075,3440.8,3440.6,2.90646]
[1736274216198,0.0075,3440.8,3440.4,2.90662]
[1736274216492,0.0075,3440.8,3440.1,3.70698]
[1736274216706,0.0075,3440.8,3440.2,2.93586433]
[1736274217011,0.0075,3440.8,3440.6,2.90644]
[1736274217991,0.0075,3440.8,3440.7,2.90638]
[1736274218376,0.8143,3441.5,3441.1,2.90604]
[1736274218804,0.0075,3441.4,3441.1,2.90604]
[1736274220026,0.0075,3441.4,3440.7,2.90634]
[1736274220235,0.0075,3441.4,3441.2,2.90593]
[1736274220400,0.0075,3441.4,3440.6,2.90642]
[1736274220699,0.0075,3441.4,3441.1,2.90602]
[1736274221330,0.0075,3441.4,3440.7,2.90638]
[1736274221331,0.0075,3441.4,3440.5,0.0075]
[1736274221661,0.0075,3441.4,3441.2,2.90592]
[1736274222773,0.0075,3441.4,3440.7,2.90632]
[1736274222979,0.0075,3441.2,3441.0,2.9061]
[1736274223313,0.0075,3441.2,3440.5,0.0075]
[1736274223477,0.0075,3441.4,3441.1,2.90604]
[1736274223673,0.0075,3441.4,3440.7,0.8323]
[1736274223880,0.0075,3441.4,3441.1,2.90599]
[1736274224080,0.0075,3441.2,3441.1,2.90599]
[1736274225951,0.0075,3441.2,3440.5,0.0075]
[1736274225952,0.0075,3441.1,3440.3,0.7623]
[1736274226113,0.0075,3441.1,3440.5,2.90647]
[1736274226320,0.0075,3440.9,3440.2,2.90677]
[1736274226768,0.0075,3440.7,3440.2,2.90677]
[1736274227137,0.0075,3440.7,3440.3,2.90671]
[1736274227385,0.0075,3441.1,3440.4,2.90659]
[1736274227877,0.0075,3440.9,3440.4,2.90659]
[1736274228577,0.0075,3440.7,3440.4,2.90659]
[1736274228970,0.0075,3441.1,3440.2,2.90676]
[1736274229169,2.76923269,3441.6,3439.4,7.66131916]
[1736274229170,0.0075,3440.5,3439.4,7.66131916]
[1736274229374,0.0075,3440.5,3439.7,2.90716]
[1736274229694,0.0075,3440.3,3439.8,2.90711]
[1736274230306,0.7597,3440.3,3439.4,1.21151647]
[1736274230515,0.0075,3440.3,3439.4,1.21151647]
[1736274230669,0.0075,3440.1,3439.4,1.21151647]
[1736274230873,2.91441,3440.1,3439.4,1.21151647]
[1736274231215,0.0075,3439.9,3439.1,2.90771]
[1736274231350,0.0075,3439.5,3438.9,1.21151647]
[1736274231884,0.0075,3439.3,3438.9,1.21151647]
[1736274232613,0.0075,3439.1,3438.9,1.21151647]
[1736274232906,0.0075,3439.1,3438.5,2.90816]
[1736274233100,0.0075,3438.9,3438.5,2.90816]
[1736274233253,0.0075,3438.7,3438.3,2.90838]
[1736274233448,0.0075,3438.7,3438.4,2.90832]
[1736274233653,0.0075,3438.7,3438.5,2.90824]
[1736274233986,0.7798,3439.6,3438.6,2.90816]
[1736274234286,0.05250814,3438.6,3438.5,2.90824]
[1736274234705,0.0075,3438.6,3438.5,38.86019798]
[1736274234850,0.0075,3438.6,3438.5,38.8311194]
[1736274236654,0.0075,3438.6,3438.5,43.1974194]
[1736274237792,0.0075,3438.6,3438.5,39.6399194]
[1736274237975,0.0075,3438.6,3438.5,4.6399194]
[1736274239594,0.0075,3438.6,3438.5,5.1974194]
[1736274240969,0.0075,3438.6,3438.5,4.6399194]
[1736274242170,0.0075,3438.6,3438.5,5.22649778]
[1736274242367,0.0075,3438.6,3438.5,5.1974194]
[1736274242669,0.0075,3438.6,3438.5,3.8311194]
[1736274245561,0.0075,3438.6,3438.5,4.41769652]
[1736274245756,0.7951,3440.4,3439.6,2.90731]
[1736274245961,0.7951,3440.4,3439.8,2.90706]
[1736274246162,0.0425726,3440.3,3439.8,2.90706]
[1736274246365,0.0075,3440.2,3439.4,2.90748]
[1736274246567,0.0075,3440.2,3439.5,0.02907025]
[1736274246760,0.0075,3440.0,3439.6,2.90731]
[1736274246991,0.0075,3440.0,3439.4,3.55675127]
[1736274247197,0.0075,3440.0,3439.6,2.90724]
[1736274247390,0.0075,3439.8,3439.7,2.90722]
[1736274247902,0.7951,3440.4,3439.9,2.90699]
[1736274248106,0.7951,3440.4,3440.0,2.90696]
[1736274248287,0.0075,3440.2,3440.0,2.90696]
[1736274248603,0.0075,3440.2,3440.1,2.90689]
[1736274248778,0.0075,3440.7,3440.1,2.90689]
[1736274249176,0.0075,3440.5,3439.9,2.90705]
[1736274249402,0.0075,3440.5,3439.6,3.0]
[1736274249581,0.0075,3440.3,3439.9,2.90698]
[1736274250306,0.7951,3440.8,3439.9,2.90698]
[1736274250307,0.0075,3440.1,3439.9,2.90698]
[1736274251006,0.7951,3440.6,3439.7,2.90719]
[1736274251191,0.0075,3439.9,3439.6,2.90727]
[1736274251391,0.0075,3439.9,3439.8,2.90714]
[1736274251904,0.7951,3440.4,3439.8,2.90714]
[1736274251905,0.0075,3440.3,3439.8,2.90714]
[1736274252107,0.0075,3440.3,3439.7,0.02906903]
[1736274252276,0.0075,3440.1,3440.0,2.90697]
[1736274252805,0.7951,3440.4,3440.2,2.9068]
[1736274253005,0.7601,3441.1,3440.3,2.90672]
[1736274253206,0.0075,3441.0,3440.3,2.90672]
[1736274253705,0.0075,3441.0,3439.8,0.5575]
[1736274253912,0.0075,3441.0,3440.4,2.90661]
[1736274254911,0.0075,3441.0,3440.2,2.90676]
[1736274255066,0.8119,3441.5,3440.4,0.0075]
[1736274255267,0.8119,3441.5,3441.2,2.90595]
[1736274255708,0.0075,3441.4,3440.7,0.7947]
[1736274255908,0.0075,3441.4,3441.0,2.90605]
[1736274256110,0.0075,3441.4,3441.2,2.90595]
[1736274256272,0.0075,3441.4,3441.0,0.02905817]
[1736274256273,0.0075,3441.8,3441.3,2.90587]
[1736274256473,0.0075,3441.8,3441.1,2.90602]
[1736274256890,0.0075,3441.8,3440.9,2.90619]
[1736274257087,0.0075,3441.3,3440.4,0.7586]
[1736274257288,0.0075,3441.1,3440.3,2.90669]
[1736274257489,0.0075,3441.1,3440.5,2.90652]
[1736274257675,0.0075,3441.1,3440.1,5.67607269]
[1736274257676,0.0075,3441.1,3440.2,0.02906366]
[1736274257881,0.0075,3441.1,3440.4,2.90659]
[1736274258109,0.0075,3441.1,3440.5,2.90655]
[1736274258410,0.0075,3441.1,3439.5,3.248]
[1736274258411,0.0075,3441.1,3440.7,2.76923269]
[1736274258623,0.0075,3441.1,3440.7,2.90637]
[1736274259215,0.0075,3441.1,3440.8,2.90625]
[1736274260524,0.0075,3441.1,3440.6,2.90644]
[1736274260897,0.0075,3440.9,3440.6,2.90644]
[1736274261505,0.0075,3440.7,3440.6,2.90644]
[1736274261820,0.0075,3440.7,3440.3,0.7601]
[1736274261821,0.0075,3440.7,3440.3,2.90664]
[1736274261986,0.0075,3441.1,3440.3,2.90664]
[1736274262189,0.0075,3440.5,3440.4,2.90663]
[1736274263005,0.0075,3441.1,3440.5,2.90654]
[1736274263209,0.0075,3441.1,3440.6,0.02906424]
[1736274263423,0.0075,3441.1,3440.3,2.90672]
[1736274263623,0.0075,3441.1,3440.6,2.90643]
[1736274264623,0.0075,3441.1,3440.4,2.7982944]
[1736274264826,0.0075,3441.1,3440.8,2.9063]
[1736274265516,0.0075,3441.1,3440.5,0.804]
[1736274265716,0.0075,3441.1,3440.7,2.90635]
[1736274267028,0.0075,3441.1,3440.5,2.90654]
[1736274267440,0.0075,3441.1,3440.1,5.67611269]
[1736274267441,2.91355,3441.1,3440.1,2.90687]
[1736274267589,2.91355,3441.1,3439.8,0.7517]
[1736274267590,0.0075,3441.1,3439.8,0.7517]
[1736274267935,0.8215,3440.5,3439.6,2.90724]
[1736274268303,0.8215,3440.5,3439.7,2.90714]
[1736274268606,0.0075,3440.3,3439.7,2.90714]
[1736274269048,0.0075,3440.4,3439.7,2.90714]
[1736274269338,0.0075,3440.1,3439.7,2.90714]
[1736274269640,0.0075,3439.9,3439.7,2.90714]
[1736274270308,0.0075,3440.4,3439.5,0.74530864]
[1736274270508,0.0075,3440.4,3439.4,0.7517]
[1736274270713,0.0075,3440.2,3439.6,2.9073]
[1736274271403,0.814,3440.5,3439.7,2.90721]
[1736274271404,0.0075,3440.0,3439.7,2.90721]
[1736274271909,0.0075,3440.4,3439.7,2.90721]
[1736274272241,0.0075,3439.8,3439.7,2.90721]
[1736274272739,0.0075,3440.2,3439.5,2.90736]
[1736274272941,0.0075,3440.2,3439.3,3.0]
[1736274273108,0.0075,3440.2,3439.7,2.90721]
[1736274273507,0.0075,3440.2,3439.7,2.90717]
[1736274273705,0.0075,3440.0,3439.5,2.90735]
[1736274274000,0.0075,3440.0,3439.0,2.90776]
[1736274274001,0.0075,3439.8,3439.0,2.90776]
[1736274274245,0.0075,3439.8,3438.8,2.90792]
[1736274274246,0.0075,3439.6,3438.8,2.90792]
[1736274274438,0.0075,3439.6,3438.9,2.90782]
[1736274275042,0.0075,3439.6,3439.0,2.90779]
[1736274275640,0.0075,3439.6,3438.8,0.97704396]
[1736274275641,0.0075,3439.6,3438.8,3.88500396]
[1736274275811,0.0075,3439.6,3438.9,2.9079]
[1736274276784,0.0075,3439.4,3439.0,2.9078]
[1736274277045,0.0075,3439.4,3438.8,3.88496396]
[1736274277236,0.0075,3439.6,3438.9,2.90786]
[1736274277565,0.0075,3439.6,3438.8,0.97704396]
[1736274277566,0.0075,3439.0,3438.7,2.90803]
[1736274278070,0.0075,3438.8,3438.7,2.90803]
[1736274278540,0.0075,3439.0,3438.4,2.90829]
[1736274278710,0.833,3438.9,3438.1,2.90856]
[1736274278910,0.8405,3438.6,3437.9,1.21256406]
[1736274279326,0.0075,3438.4,3437.9,1.21256406]
[1736274279519,0.04101971,3438.5,3437.9,1.21256406]
[1736274279520,0.0075,3438.2,3437.9,1.21256406]
[1736274279719,0.0075,3438.2,3437.6,1.21256406]
[1736274280059,0.0075,3437.8,3437.6,1.21256406]
[1736274280603,0.04800537,3437.7,3437.6,1.21256406]
[1736274281662,0.0075,3437.6,3437.0,2.90951]
[1736274282069,0.0075,3437.4,3437.0,2.90951]
[1736274282645,0.8216,3437.9,3437.0,2.90951]
[1736274282646,0.0075,3437.2,3437.0,2.90951]
[1736274282848,0.0075,3437.0,3436.7,0.1722283]
[1736274283311,0.0075,3436.8,3436.7,0.1722283]
[1736274283653,0.0075,3437.0,3436.7,0.1722283]
[1736274283868,0.0075,3437.0,3436.7,3.0819783]
[1736274284787,0.0075,3436.8,3436.7,3.0819783]
[1736274286296,0.0075,3437.0,3436.7,3.0819783]
[1736274286517,0.0075,3437.0,3436.8,2.90967]
[1736274287291,0.0075,3437.0,3436.7,0.1722283]
[1736274287497,0.8229,3437.7,3437.2,2.90927]
[1736274287651,0.0075,3437.6,3437.2,2.90927]
[1736274287851,0.04610352,3437.6,3436.8,2.9096]
[1736274288115,0.0075,3437.6,3436.8,2.9096]
[1736274288407,0.0075,3437.4,3436.8,2.9096]
[1736274288762,0.0075,3437.2,3436.8,2.9096]
[1736274289173,0.0075,3437.0,3436.8,2.9096]
[1736274289373,0.0075,3437.0,3436.7,0.1722283]
[1736274289621,0.0075,3436.8,3436.7,0.1722283]
[1736274290167,0.7656,3437.3,3436.7,0.1722283]
[1736274290168,0.0075,3437.2,3436.7,0.1722283]
[1736274290402,0.0075,3437.0,3436.7,0.1722283]
[1736274291102,0.0075,3436.8,3436.7,0.1722283]
[1736274291702,0.7656,3437.3,3436.7,0.1722283]
[1736274291703,0.5575,3437.2,3436.7,0.1722283]
[1736274292137,0.0075,3437.0,3436.7,0.1722283]
[1736274292436,0.0075,3436.8,3436.7,0.1722283]
[1736274293025,0.04603835,3436.8,3436.7,0.1722283]
[1736274293211,0.0075,3437.1,3436.7,0.1722283]
[1736274293536,0.55,3437.2,3436.7,0.1722283]
[1736274293537,0.04603835,3436.8,3436.7,0.1722283]
[1736274294041,1.38573835,3436.8,3436.7,0.1722283]
[1736274300936,4.29541835,3436.8,3436.7,0.1722283]
[1736274303045,4.86487823,3436.8,3436.7,0.1722283]
[1736274303439,7.86487823,3436.8,3436.7,0.1722283]
[1736274304580,8.11287823,3436.8,3436.7,0.1722283]
[1736274307623,8.11187823,3436.8,3436.7,0.1722283]
[1736274311221,0.5575,3436.7,3435.1,5.68030269]
[1736274311374,0.5575,3436.7,3435.2,35.86832127]
[1736274311578,0.5575,3436.6,3435.3,0.02910414]
[1736274311812,0.5575,3436.6,3435.7,2.76923269]
[1736274311813,0.0075,3436.6,3435.7,2.76923269]
[1736274311999,0.03547986,3436.5,3435.9,2.9104]
[1736274312216,0.0075,3436.4,3435.9,2.9104]
[1736274312422,0.0075,3436.4,3435.9,2.8611894]
[1736274312587,0.0075,3436.6,3435.9,2.8611894]
[1736274312790,0.0075,3436.4,3435.9,2.8611894]
[1736274313111,0.5575,3436.2,3435.2,3.77931127]
[1736274313315,0.5575,3436.2,3435.5,2.91075]
[1736274313484,0.5575,3436.2,3435.0,0.58826788]
[1736274313485,0.5575,3436.0,3435.3,2.91088]
[1736274313881,0.0075,3436.1,3435.0,0.00291]
[1736274314195,0.0075,3436.1,3435.4,3.67428]
[1736274315220,0.0075,3436.1,3435.6,2.91067]
[1736274315442,0.5575,3436.5,3435.6,2.91067]
[1736274315649,0.5575,3436.5,3435.7,2.93971388]
[1736274315920,0.03557122,3436.4,3436.0,2.91029]
[1736274316121,0.03557122,3436.4,3436.3,3.6677]
[1736274316281,0.757,3437.2,3436.3,4.60533935]
[1736274316488,0.04309079,3436.4,3436.3,3.6677]
[1736274316704,0.0075,3436.4,3436.3,3.6677]
[1736274318817,0.0075,3436.4,3436.3,6.46602978]
[1736274319023,0.0075,3436.4,3436.3,6.43693269]
[1736274319322,0.0075,3436.4,3436.3,3.6677]
[1736274319523,0.0075,3436.4,3436.3,6.5288894]
[1736274320802,0.59418802,3438.2,3437.1,0.8131]
[1736274321001,2.03196406,3438.4,3437.1,0.8131]
[1736274321002,0.03559079,3438.1,3437.5,2.90906]
[1736274321205,0.0075,3438.0,3437.3,2.90918]
[1736274321533,0.0075,3438.0,3436.8,2.90966]
[1736274321534,2.91635,3437.8,3436.8,2.90966]
[1736274321732,0.0075,3437.6,3436.7,0.8043]
[1736274321970,0.55,3437.7,3436.4,2.90998]
[1736274321971,3.5575,3437.4,3436.4,2.90998]